bitfinex-derivatives/quotes_ETHF0:USTF0_20250314
["timestamp","ask_amount","ask_price","bid_price","bid_amount"]
[1741976823584,5.57024,1931.5,1931.4,1.3719]
[1741976823981,6.25624,1931.5,1931.4,1.3719]
[1741976824181,6.25624,1931.5,1931.4,2.40739]
[1741976824580,4.5348,1931.5,1931.4,2.40739]
[1741976824986,5.57024,1931.5,1931.4,2.40739]
[1741976825486,1.03553,1931.4,1931.3,1.03553]
[1741976825687,1.4324,1931.4,1931.3,1.03553]
[1741976825883,3.2078,1931.5,1931.4,1.03549]
[1741976826089,0.6859,1931.9,1931.8,1.03528]
[1741976826275,3.8937,1932.1,1931.7,3.537]
[1741976826588,1.03522,1932.0,1931.8,1.03526]
[1741976826777,2.4676,1932.0,1931.8,2.41566]
[1741976827082,3.2078,1932.1,1932.0,1.03517]
[1741976827280,1.4324,1932.2,1932.1,1.03512]
[1741976827475,1.44015936,1932.2,1932.1,1.03512]
[1741976828181,1.44015936,1932.2,1932.1,1.74262]
[1741976828577,4.64795936,1932.2,1932.1,1.74262]
[1741976828781,5.68301936,1932.2,1932.1,0.7075]
[1741976828986,4.64795936,1932.2,1932.1,1.74262]
[1741976829291,4.64795936,1932.2,1932.1,3.16142]
[1741976829790,0.00775936,1932.2,1932.1,3.16142]
[1741976834281,0.00775936,1932.2,1932.1,6.36922]
[1741976837494,4.95893,1932.7,1932.5,1.03489]
[1741976837697,1.3845,1932.6,1932.5,1.03489]
[1741976839195,3.21290549,1932.7,1932.6,1.03485]
[1741976839395,3.21290549,1932.7,1932.6,4.56985]
[1741976839701,0.00510549,1932.7,1932.6,4.56985]
[1741976843701,0.00510549,1932.7,1932.6,1.03485]
[1741976843902,0.00510549,1932.7,1932.6,4.56885]
[1741976844100,0.00510549,1932.7,1932.5,4.93099]
[1741976844400,3.2078,1932.6,1932.3,0.7236]
[1741976844599,1.03496,1932.4,1932.2,4.56903]
[1741976844898,1.3925,1932.3,1932.2,4.56906]
[1741976845203,2.116,1932.3,1932.2,4.56906]
[1741976845403,2.116,1932.3,1932.2,1.03506]
[1741976845598,1.3925,1932.3,1932.2,1.03506]
[1741976845805,0.6726,1932.5,1932.3,1.03498]
[1741976845995,1.3925,1932.4,1932.3,1.03498]
[1741976846200,3.8985,1932.6,1932.5,1.0349]
[1741976846401,3.8985,1932.6,1932.2,2.58763]
[1741976846699,0.6907,1932.6,1932.5,1.0349]
[1741976847494,3.08988,1932.6,1932.2,2.58755]
[1741976847696,3.08988,1932.6,1932.5,1.0349]
[1741976847896,1.72558,1932.6,1932.4,1.03492]
[1741976848092,1.0349,1932.5,1932.3,1.03498]
[1741976848298,1.0349,1932.5,1932.4,1.03496]
[1741976848796,3.8985,1932.6,1932.4,1.03495]
[1741976849207,1.03492,1932.5,1932.4,1.03495]
[1741976849703,1.03492,1932.5,1932.1,9.98568]
[1741976849904,4.93339,1932.6,1932.4,1.03496]
[1741976850101,1.03494,1932.5,1932.3,1.035]
[1741976850306,1.03494,1932.5,1932.2,3.534]
[1741976850606,3.2078,1932.4,1932.2,4.56903]
[1741976850809,4.24279,1932.4,1932.2,3.534]
[1741976851105,3.2078,1932.4,1932.3,1.03501]
[1741976851306,0.6907,1932.6,1932.2,6.12164]
[1741976851307,3.8985,1932.6,1932.2,6.12164]
[1741976851506,4.93336,1932.6,1932.5,1.0349]
[1741976851909,4.93336,1932.6,1932.4,1.03491]
[1741976852203,3.8985,1932.6,1932.5,1.0349]
[1741976852707,3.2078,1932.6,1932.5,1.0349]
[1741976853203,3.2078,1932.6,1932.4,0.6956]
[1741976853510,1.03992549,1932.7,1932.5,1.0349]
[1741976853702,1.03992549,1932.7,1932.5,1.03486]
[1741976853896,3.2078,1932.6,1932.5,1.03486]
[1741976854407,3.2078,1932.6,1932.5,1.0349]
[1741976854603,3.2078,1932.6,1932.4,0.6956]
[1741976854604,3.2078,1932.6,1932.4,1.73052]
[1741976854811,1.03496,1932.4,1932.3,1.03498]
[1741976855010,1.03496,1932.4,1932.2,1.03504]
[1741976855213,4.90336,1932.4,1932.2,1.03504]
[1741976856104,4.90336,1932.4,1932.3,1.03501]
[1741976856408,4.90336,1932.4,1932.1,4.866]
[1741976856610,3.8684,1932.4,1932.3,1.03501]
[1741976857211,4.90336,1932.4,1932.3,1.03501]
[1741976857506,3.2078,1932.4,1932.3,1.03501]
[1741976858310,4.24269,1932.6,1932.4,1.03491]
[1741976858512,4.24269,1932.6,1932.5,1.3665]
[1741976859011,1.0349,1932.5,1932.1,10.6616]
[1741976859211,1.0349,1932.5,1932.2,1.3919]
[1741976859512,1.03496,1932.4,1932.3,1.03498]
[1741976860209,0.6814,1932.5,1932.2,1.3919]
[1741976860410,1.03496,1932.4,1932.2,1.3919]
[1741976860607,0.6814,1932.5,1932.4,1.03496]
[1741976860912,0.6814,1932.5,1932.3,1.03497]
[1741976861109,1.7163,1932.5,1932.4,1.3919]
[1741976862014,1.03499,1932.4,1932.1,10.66158]
[1741976862214,1.03499,1932.4,1932.3,1.035]
[1741976863022,1.71633,1932.5,1932.4,1.03496]
[1741976863707,1.03493,1932.5,1932.4,1.03496]
[1741976864214,1.03496,1932.4,1932.3,2.41327]
[1741976865615,4.24276,1932.4,1932.3,2.41327]
[1741976867316,3.2078,1932.4,1932.3,2.41327]
[1741976867819,4.5395,1932.4,1932.3,2.41327]
[1741976869417,5.57446,1932.4,1932.3,2.41327]
[1741976869622,5.57446,1932.4,1932.3,1.3783]
[1741976869918,5.57446,1932.4,1932.3,2.41331]
[1741976870909,4.5395,1932.4,1932.3,2.41331]
[1741976871625,3.2078,1932.4,1932.3,2.41331]
[1741976873019,4.5606,1932.4,1932.3,2.41331]
[1741976873521,5.59556,1932.4,1932.3,2.41331]
[1741976874016,4.5606,1932.4,1932.3,2.41331]
[1741976874222,5.59556,1932.4,1932.3,2.41331]
[1741976874514,1.03506,1932.2,1932.1,1.332]
[1741976874713,1.03506,1932.2,1932.1,2.7329]
[1741976874919,1.03506,1932.2,1932.1,2.0768]
[1741976875124,2.44156,1932.2,1932.1,2.0768]
[1741976876416,2.44156,1932.2,1932.1,3.11192]
[1741976876417,1.4065,1932.2,1932.1,3.11192]
[1741976880123,3.2078,1932.4,1932.3,1.03501]
[1741976880517,3.2078,1932.6,1932.5,1.0349]
[1741976880712,0.00510549,1932.7,1932.3,6.11943]
[1741976880713,0.00510549,1932.7,1932.6,1.03485]
[1741976881221,0.00510549,1932.7,1932.6,4.56685]
[1741976881418,0.00510549,1932.7,1932.6,5.24215]
[1741976882621,0.00510549,1932.7,1932.6,6.69195]
[1741976884523,0.00510549,1932.7,1932.6,9.89975]
[1741976885833,1.03990549,1932.7,1932.6,1.4498]
[1741976886029,0.72750549,1932.7,1932.6,2.48465]
[1741976886424,2.05000549,1932.7,1932.6,2.48465]
[1741976886625,3.08480549,1932.7,1932.6,1.4498]
[1741976887031,2.05000549,1932.7,1932.5,4.5669]
[1741976887229,2.05000549,1932.7,1932.6,2.34735]
[1741976887230,0.72750549,1932.7,1932.6,2.34735]
[1741976888725,0.72750549,1932.7,1932.6,1.3125]
[1741976888726,1.76230549,1932.7,1932.6,1.3125]
[1741976889329,4.97010549,1932.7,1932.6,1.3125]
[1741976889834,1.03485,1932.6,1932.5,3.532]
[1741976890032,1.03485,1932.6,1932.5,4.9564]
[1741976891437,1.03485,1932.6,1932.5,1.4244]
[1741976892732,6.52231549,1932.7,1931.8,0.40169208]
[1741976892928,1.035,1932.4,1932.2,1.03501]
[1741976893130,1.03496,1932.4,1932.3,1.3838]
[1741976894027,1.03506,1932.2,1932.1,1.03508]
[1741976894234,1.03506,1932.2,1932.1,2.41888]
[1741976894435,1.03505,1932.3,1932.2,1.03506]
[1741976894637,1.03505,1932.3,1932.2,1.3838]
[1741976894835,3.9023,1932.5,1932.2,1.3838]
[1741976895038,3.9023,1932.5,1932.4,1.03496]
[1741976895338,4.9372,1932.5,1932.4,1.03496]
[1741976895536,4.9372,1932.5,1932.3,2.6785]
[1741976895739,4.9372,1932.5,1932.3,3.71347]
[1741976896043,4.9372,1932.5,1932.4,1.3151]
[1741976896337,1.7294,1932.5,1932.4,1.3151]
[1741976897032,1.0349,1932.5,1932.4,1.3151]
[1741976897235,3.93530549,1932.7,1932.5,1.03488]
[1741976897447,4.97010549,1932.7,1932.6,1.3151]
[1741976899236,3.21290549,1932.7,1932.6,2.34995]
[1741976899433,3.21290549,1932.7,1932.6,5.88095]
[1741976899636,4.24770549,1932.7,1932.6,5.88095]
[1741976899835,3.21290549,1932.7,1932.6,5.88095]
[1741976900044,4.24770549,1932.7,1932.6,5.88095]
[1741976900345,3.21290549,1932.7,1932.6,5.88095]
[1741976900544,1.03990549,1932.7,1932.6,4.8461]
[1741976900740,1.03990549,1932.7,1932.6,1.3151]
[1741976901042,4.24770549,1932.7,1932.6,1.3151]
[1741976901436,1.0349,1932.5,1932.4,3.531]
[1741976901935,1.03486,1932.6,1932.4,4.56593]
[1741976902335,3.21290549,1932.7,1932.6,1.03485]
[1741976903347,3.21290549,1932.7,1932.6,1.69225]
[1741976905248,0.00510549,1932.7,1932.6,1.69225]
[1741976913852,1.03485,1932.6,1932.5,1.3448]
[1741976914050,3.72427,1932.6,1932.3,4.1849]
[1741976914254,3.72427,1932.6,1932.5,1.0349]
[1741976914451,2.40167,1932.6,1932.4,2.38822]
[1741976914752,2.40168,1932.6,1932.4,2.38822]
[1741976915151,2.40168,1932.6,1932.5,1.3533]
[1741976915854,2.40168,1932.6,1932.5,2.3882]
[1741976917255,1.3668,1932.6,1932.5,2.3882]
[1741976917455,2.40165,1932.6,1932.5,2.3882]
[1741976917955,1.3668,1932.6,1932.5,2.3882]
[1741976919654,1.3668,1932.6,1932.4,1.03493]
[1741976919655,1.03492,1932.5,1932.4,1.03493]
[1741976919855,1.0349,1932.5,1932.4,2.40612]
[1741976920155,1.03496,1932.4,1932.3,4.56398]
[1741976920450,1.03496,1932.4,1932.3,2.40618]
[1741976920652,4.24275,1932.5,1932.4,1.03496]
[1741976921150,1.03496,1932.4,1932.3,2.40617]
[1741976921947,1.03496,1932.4,1932.3,2.4062]
[1741976922151,4.24274,1932.5,1932.4,1.03496]
[1741976922359,4.24274,1932.5,1932.4,2.40616]
[1741976922650,3.2078,1932.5,1932.4,2.40616]
[1741976922855,1.0349,1932.5,1932.4,2.40616]
[1741976923458,1.0349,1932.5,1932.4,1.3712]
[1741976923956,1.0349,1932.5,1932.4,2.40616]
[1741976925957,2.40169,1932.6,1932.5,1.0349]
[1741976926149,3.21290549,1932.7,1932.6,1.03485]
[1741976926761,3.21290549,1932.7,1932.6,2.34985]
[1741976928948,4.59490549,1932.7,1932.6,2.34985]
[1741976929560,0.00510549,1932.7,1932.6,2.34985]
[1741976930762,1.38710549,1932.7,1932.6,2.34985]
[1741976931061,2.42190549,1932.7,1932.6,1.315]
[1741976931258,1.03489,1932.6,1932.4,1.03496]
[1741976931565,3.79719,1932.6,1932.4,2.45993]
[1741976931765,3.79719,1932.6,1932.5,1.0349]
[1741976931964,2.41519,1932.6,1932.5,2.358]
[1741976933157,5.62295,1932.6,1932.4,1.03491]
[1741976933359,4.5881,1932.6,1932.3,0.6939]
[1741976933558,1.03496,1932.4,1932.3,1.3231]
[1741976933758,1.03496,1932.4,1932.3,2.35811]
[1741976934057,4.5881,1932.6,1932.3,1.3231]
[1741976934268,1.03496,1932.4,1932.3,2.35808]
[1741976934463,1.03496,1932.4,1932.3,2.35807]
[1741976935663,1.03503,1932.3,1932.2,1.03502]
[1741976935858,1.03503,1932.3,1932.2,2.42092]
[1741976936255,1.03506,1932.2,1932.1,1.03508]
[1741976936460,1.03512,1932.1,1932.0,30.09065936]
[1741976936663,1.72352,1932.1,1932.0,1.04292936]
[1741976938766,1.72352,1932.1,1932.0,0.00775936]
[1741976941673,1.03528,1931.8,1931.7,1.423]
[1741976942470,3.2078,1931.9,1931.8,1.03528]
[1741976942773,10.21692,1932.1,1932.0,1.03517]
[1741976943370,10.21692,1932.1,1932.0,3.18247]
[1741976943875,10.21692,1932.1,1932.0,2.1473]
[1741976944473,10.21692,1932.1,1932.0,3.18247]
[1741976945174,7.00912,1932.1,1932.0,3.18247]
[1741976945473,7.00912,1932.1,1932.0,2.1473]
[1741976945672,6.51624,1932.3,1932.2,1.03506]
[1741976945673,0.7209,1932.3,1932.2,1.03506]
[1741976945864,0.7132,1932.5,1932.2,1.03503]
[1741976946069,1.03496,1932.4,1932.3,2.0229]
[1741976946472,1.03494,1932.5,1932.4,1.03495]
[1741976946670,1.0349,1932.5,1932.4,1.978]
[1741976947174,1.0349,1932.5,1932.4,3.01296]
[1741976947974,2.36728,1932.6,1932.5,1.0349]
[1741976948179,1.03992549,1932.7,1932.5,1.418]
[1741976948380,2.43252549,1932.7,1932.6,1.03485]
[1741976948577,1.03485,1932.6,1932.5,1.418]
[1741976948767,1.03485,1932.6,1932.5,2.4529]
[1741976948768,2.42745,1932.6,1932.5,2.4529]
[1741976948971,1.3926,1932.6,1932.5,2.4529]
[1741976950671,1.03990549,1932.7,1932.5,2.4529]
[1741976950871,2.47810549,1932.7,1932.6,2.48335]
[1741976951179,2.47810549,1932.7,1932.6,1.4485]
[1741976952375,2.47810549,1932.7,1932.6,2.48335]
[1741976954076,1.44330549,1932.7,1932.6,2.48335]
[1741976954282,2.47810549,1932.7,1932.6,2.48335]
[1741976954980,2.47810549,1932.7,1932.6,1.4485]
[1741976955982,1.03512,1932.1,1932.0,28.705]
[1741976956183,4.24291,1932.2,1932.0,1.3231]
[1741976956379,3.2078,1932.4,1932.0,1.3231]
[1741976956583,1.03509,1932.2,1932.1,1.03511]
[1741976956976,2.1414,1932.3,1932.0,1.3231]
[1741976957176,5.67199,1932.2,1932.1,1.03508]
[1741976958484,1.03512,1932.1,1932.0,2.35822]
[1741976958682,1.4291,1932.1,1932.0,2.35822]
[1741976959685,3.2078,1932.2,1932.0,1.3231]
[1741976959985,5.67896,1932.2,1932.1,1.3488]
[1741976960682,5.67896,1932.2,1932.1,2.0055]
[1741976961281,3.2078,1932.2,1932.1,3.04062]
[1741976961478,3.2078,1932.4,1932.3,1.03501]
[1741976962181,1.03491,1932.5,1932.3,2.41391]
[1741976962379,1.03491,1932.5,1932.4,2.0868]
[1741976962683,1.0349,1932.5,1932.4,2.0868]
[1741976962879,1.4361,1932.6,1932.4,3.12176]
[1741976962880,2.47099,1932.6,1932.4,3.12176]
[1741976963081,2.47099,1932.6,1932.5,2.4138]
[1741976963280,2.47099,1932.6,1932.5,1.3789]
[1741976963884,2.47099,1932.6,1932.5,2.4138]
[1741976964087,1.4361,1932.6,1932.5,2.4138]
[1741976964485,2.47095,1932.6,1932.5,2.4138]
[1741976965084,1.4361,1932.6,1932.5,2.4138]
[1741976967887,2.47095,1932.6,1932.5,2.4138]
[1741976968489,1.4361,1932.6,1932.5,2.4138]
[1741976968684,2.47095,1932.6,1932.5,2.4138]
[1741976968887,1.4361,1932.6,1932.5,2.4138]
[1741976969888,3.21290549,1932.7,1932.6,1.03485]
[1741976970087,0.00510549,1932.7,1932.6,6.30325]
[1741976970386,0.00510549,1932.7,1932.6,3.09545]
[1741976970776,0.00510549,1932.7,1932.6,3.4966834]
[1741976971176,1.03467,1933.0,1932.9,1.03468]
[1741976971381,2.41867,1933.0,1932.9,1.03468]
[1741976971793,1.384,1933.0,1932.9,1.03468]
[1741976971988,2.41864,1933.0,1932.9,1.03468]
[1741976972182,2.41866,1933.0,1932.9,1.03469]
[1741976972383,1.384,1933.0,1932.8,2.41284936]
[1741976972584,1.384,1932.9,1932.8,2.41284936]
[1741976972785,1.384,1932.9,1932.8,1.04244936]
[1741976973886,2.41869,1932.9,1932.8,1.04244936]
[1741976974587,1.384,1932.9,1932.8,1.04244936]
[1741976977287,2.41869,1932.9,1932.8,1.04244936]
[1741976977489,5.62649,1932.9,1932.8,1.04244936]
[1741976978388,5.62649,1932.9,1932.8,1.04249936]
[1741976978897,5.62649,1932.9,1932.8,0.00775936]
[1741976979594,1.03485,1932.6,1932.5,3.525]
[1741976979794,1.03485,1932.6,1932.4,1.03491]
[1741976979795,1.0349,1932.5,1932.4,1.03491]
[1741976980094,2.4673,1932.5,1932.4,1.03491]
[1741976980289,1.03501,1932.4,1932.3,1.03497]
[1741976980489,5.67101,1932.4,1932.3,1.03497]
[1741976981290,4.636,1932.4,1932.3,1.03497]
[1741976981597,5.67096,1932.4,1932.3,1.03497]
[1741976982197,2.46316,1932.4,1932.3,1.03497]
[1741976984997,1.03496,1932.4,1932.3,1.03497]
[1741976985395,2.44136,1932.4,1932.3,1.03497]
[1741976985699,1.03501,1932.3,1932.2,1.04277936]
[1741976986599,1.035,1932.4,1932.3,1.03501]
[1741976986804,2.4018,1932.6,1932.2,2.59531936]
[1741976987006,1.0349,1932.6,1932.5,1.0349]
[1741976987502,1.03492,1932.5,1932.4,1.03492]
[1741976987698,1.03492,1932.5,1932.4,3.08112]
[1741976989497,1.03492,1932.5,1932.4,2.0462]
[1741976989701,4.24272,1932.5,1932.4,3.08116]
[1741976991302,1.03492,1932.5,1932.4,3.08116]
[1741976991599,4.24268,1932.6,1932.5,1.0349]
[1741976991801,4.24268,1932.6,1932.5,2.4173]
[1741976997194,4.24268,1932.6,1932.5,3.0993]
[1741977000007,1.03488,1932.6,1932.5,3.0993]
[1741977000200,1.03474,1932.8,1932.7,1.0348]
[1741977000406,3.2078,1933.0,1932.7,2.587]
[1741977000603,1.03472,1932.9,1932.8,1.3679]
[1741977000798,4.24252,1932.9,1932.8,1.3679]
[1741977001306,1.0349,1932.5,1932.4,4.55894]
[1741977001497,4.2427,1932.5,1932.4,3.524]
[1741977001691,1.03496,1932.4,1932.3,2.4749]
[1741977002099,3.2078,1932.7,1932.3,1.4399]
[1741977002305,4.24264,1932.7,1932.6,1.03485]
[1741977002507,3.2078,1932.7,1932.6,1.03485]
[1741977002908,3.2078,1932.7,1932.6,3.12905]
[1741977003202,4.2426,1932.7,1932.6,2.0942]
[1741977003908,4.2426,1932.7,1932.6,1.3799]
[1741977004905,4.2426,1932.7,1932.6,2.41475]
[1741977006711,3.2078,1932.7,1932.6,2.41475]
[1741977006906,4.2426,1932.7,1932.6,2.41475]
[1741977007208,3.2078,1932.7,1932.6,2.41475]
[1741977007709,4.2426,1932.7,1932.6,2.41475]
[1741977008009,4.2426,1932.7,1932.6,1.3799]
[1741977008213,4.2426,1932.7,1932.6,2.41475]
[1741977008505,4.2426,1932.7,1932.6,1.3799]
[1741977009203,1.0349,1932.5,1932.4,0.6667]
[1741977009404,4.2427,1932.5,1932.4,0.6667]
[1741977009611,1.03501,1932.3,1932.2,0.00775936]
[1741977009809,4.24281,1932.3,1932.2,0.00775936]
[1741977010009,3.2078,1932.3,1932.2,1.04281936]
[1741977010506,4.6258,1932.3,1932.2,1.04281936]
[1741977010706,3.2078,1932.3,1932.2,1.04281936]
[1741977011207,1.418,1932.5,1932.4,1.03496]
[1741977011813,2.4529,1932.5,1932.4,3.04086]
[1741977012013,2.4529,1932.5,1932.4,1.3428]
[1741977012414,2.4529,1932.5,1932.4,2.37776]
[1741977013913,1.418,1932.5,1932.2,3.52975936]
[1741977014211,1.03501,1932.3,1932.2,2.44678936]
[1741977014610,2.48791,1932.3,1932.2,2.44678936]
[1741977015916,1.4529,1932.3,1932.2,2.44678936]
[1741977016103,9.1818,1932.7,1932.2,4.61955936]
[1741977016306,9.1818,1932.7,1932.6,1.03485]
[1741977016709,1.4529,1932.9,1932.8,1.03474]
[1741977016903,3.2078,1933.0,1932.9,1.03469]
[1741977017108,1.4529,1933.0,1932.9,1.03469]
[1741977017504,1.04238936,1933.1,1933.0,1.03464]
[1741977017505,0.00775936,1933.1,1933.0,1.03464]
[1741977017709,0.00775936,1933.1,1933.0,1.3339]
[1741977017914,1.45285936,1933.1,1933.0,2.36854]
[1741977018315,2.48743936,1933.1,1933.0,1.3339]
[1741977019122,1.45285936,1933.1,1933.0,2.36854]
[1741977020105,3.2078,1933.4,1933.3,1.03447]
[1741977020304,1.03449,1933.3,1933.2,1.03453]
[1741977020512,1.3476,1933.3,1933.2,2.44903]
[1741977023315,3.21555936,1933.4,1933.3,1.03447]
[1741977023517,4.62245936,1933.4,1933.3,3.07357]
[1741977023819,5.65687936,1933.4,1933.3,3.07357]
[1741977024220,2.44907936,1933.4,1933.3,3.07357]
[1741977024425,1.41465936,1933.4,1933.3,3.07357]
[1741977024611,2.44907936,1933.4,1933.3,2.0391]
[1741977024909,1.41465936,1933.4,1933.3,3.07357]
[1741977025111,2.44907936,1933.4,1933.3,3.07357]
[1741977026425,7.20851936,1933.4,1932.9,1.03469]
[1741977026723,1.3907,1933.3,1933.2,1.03453]
[1741977027414,1.3907,1933.3,1933.2,1.72463]
[1741977027615,1.3907,1933.3,1932.8,6.10786]
[1741977027616,4.5985,1933.3,1932.8,6.10786]
[1741977027818,1.03459,1933.1,1932.9,2.7254]
[1741977028123,1.03462,1933.1,1933.0,1.3804]
[1741977028319,1.03462,1933.1,1933.0,2.41502]
[1741977029424,1.03458,1933.1,1933.0,2.41501]
[1741977030324,1.03458,1933.1,1933.0,2.415]
[1741977030720,3.2078,1933.1,1932.8,1.03471]
[1741977031025,1.03473,1932.9,1932.8,1.03474]
[1741977031219,1.03474,1932.8,1932.7,5.91446]
[1741977031424,3.2078,1933.1,1932.7,4.8797]
[1741977031624,1.03467,1933.0,1932.9,1.03466]
[1741977034025,1.03469,1932.9,1932.8,2.38364]
[1741977035125,1.03467,1933.0,1932.9,1.03464]
[1741977035423,3.2078,1933.1,1932.8,1.3489]
[1741977035618,1.03469,1933.0,1932.9,1.03466]
[1741977035817,1.03469,1932.9,1932.8,1.3489]
[1741977036013,4.24249,1932.9,1932.8,1.3489]
[1741977036219,1.03469,1932.9,1932.8,1.3489]
[1741977036413,4.24249,1932.9,1932.8,1.3489]
[1741977038725,4.24249,1932.9,1932.8,1.3489]
[1741977039425,1.0349,1932.6,1932.5,1.03485]
[1741977039621,1.0349,1932.6,1932.5,1.4502]
[1741977039919,1.03501,1932.3,1932.2,0.00775936]
[1741977040123,1.03501,1932.3,1932.2,2.49301936]
[1741977040515,3.2078,1932.5,1932.2,1.45795936]
[1741977040720,1.03496,1932.4,1932.3,2.48518]
[1741977040924,1.03496,1932.4,1932.3,1.70858]
[1741977042616,9.1818,1932.7,1932.3,3.26112]
[1741977042924,4.24262,1932.7,1932.6,1.03485]
[1741977043126,3.2078,1932.7,1932.6,1.03485]
[1741977043317,3.2078,1932.9,1932.5,3.2078]
[1741977043514,1.03474,1932.8,1932.7,1.03476]
[1741977043723,0.7235,1933.1,1932.8,0.7065]
[1741977043922,6.48411,1933.3,1933.0,1.03463]
[1741977043923,1.03453,1933.2,1933.0,1.03463]
[1741977044124,1.03453,1933.2,1932.9,0.6716]
[1741977044427,1.04221936,1933.4,1933.3,1.03447]
[1741977044620,1.04221936,1933.4,1933.0,3.52]
[1741977045126,1.04221936,1933.4,1933.2,1.03448]
[1741977045322,1.04221936,1933.4,1933.3,0.6716]
[1741977045715,2.59387936,1933.4,1932.9,3.2078]
[1741977046028,3.2078,1933.3,1933.0,4.5546]
[1741977046223,1.03456,1933.2,1933.0,4.5546]
[1741977046531,4.24238,1933.1,1932.9,1.70625]
[1741977046831,1.73157,1933.2,1933.0,1.03464]
[1741977047021,3.07317,1933.2,1933.0,1.0346]
[1741977047229,2.37621,1933.1,1932.9,1.70624]
[1741977047420,2.37621,1933.1,1933.0,1.03464]
[1741977047622,3.2078,1933.3,1933.0,2.5866]
[1741977047820,3.2078,1933.3,1933.2,1.03453]
[1741977049030,1.43215936,1933.4,1933.3,1.03447]
[1741977049322,0.00775936,1933.4,1933.3,1.03447]
[1741977051222,1.03433,1933.6,1933.3,0.6804]
[1741977051423,1.3766,1933.6,1933.5,1.03437]
[1741977051817,2.41091,1933.6,1933.4,3.519]
[1741977052035,2.41091,1933.6,1933.5,1.03437]
[1741977052329,1.03437,1933.5,1933.4,3.52675936]
[1741977055132,1.03437,1933.5,1933.4,1.04217936]
[1741977056922,1.03433,1933.6,1933.5,1.03431]
[1741977057823,4.24209,1933.7,1933.6,1.03431]
[1741977058025,1.03437,1933.6,1933.5,1.03434]
[1741977058326,4.2421,1933.7,1933.6,1.03431]
[1741977058933,1.03434,1933.6,1933.5,1.03432]
[1741977060031,1.03434,1933.6,1933.5,2.36942]
[1741977060423,0.6817,1933.8,1933.5,1.3351]
[1741977060624,1.0342,1933.9,1933.8,1.03421]
[1741977061335,1.0342,1933.9,1933.8,2.36931]
[1741977062337,1.03411,1934.0,1933.9,1.0341]
[1741977062633,1.0341,1934.0,1933.9,2.48394]
[1741977064036,3.9233,1934.1,1933.9,1.4498]
[1741977064335,1.03408,1934.1,1934.0,1.4498]
[1741977064737,4.24188,1934.1,1934.0,1.4498]
[1741977066834,4.24188,1934.1,1934.0,2.4839]
[1741977067037,5.62818,1934.1,1934.0,2.4839]
[1741977067941,3.2078,1934.3,1934.2,1.03394]
[1741977068135,4.5941,1934.3,1934.2,1.03394]
[1741977068642,4.5941,1934.3,1934.2,2.42884]
[1741977068938,3.2078,1934.3,1934.2,2.42884]
[1741977069935,2.34569,1934.4,1934.2,1.3949]
[1741977070128,1.3118,1934.4,1934.3,1.3949]
[1741977070636,2.34569,1934.4,1934.3,1.3949]
[1741977070837,2.34569,1934.4,1934.3,2.42884]
[1741977071038,2.34569,1934.4,1934.3,1.3949]
[1741977072547,5.55349,1934.4,1934.3,1.3949]
[1741977073845,5.55349,1934.4,1933.5,31.26792]
[1741977073846,2.58499,1934.2,1933.5,31.26792]
[1741977074046,1.03419,1933.9,1933.8,1.03421]
[1741977074340,1.03419,1933.9,1933.5,32.8771]
[1741977074341,1.03431,1933.6,1933.5,32.8771]
[1741977074538,1.03437,1933.5,1933.4,0.00775936]
[1741977074735,4.24217,1933.5,1933.4,1.43945936]
[1741977084142,1.03437,1933.5,1933.4,1.43945936]
[1741977084744,4.24217,1933.5,1933.4,1.43945936]
[1741977090449,4.24217,1933.5,1933.4,2.47387936]
[1741977090849,4.24217,1933.5,1933.4,1.43945936]
[1741977095057,4.24217,1933.5,1933.4,2.47387936]
[1741977095456,4.24217,1933.5,1933.4,1.43945936]
[1741977095855,3.2078,1933.5,1933.4,2.47387936]
[1741977096055,3.2078,1933.9,1933.7,1.03422]
[1741977096251,1.03428,1933.7,1933.6,1.03428]
[1741977097254,1.03431,1933.6,1933.5,1.73034]
[1741977097755,1.03431,1933.6,1933.5,0.696]
[1741977097955,1.03437,1933.5,1933.4,3.52375936]
[1741977098157,5.63787,1933.5,1933.4,0.00775936]
[1741977100162,5.63787,1933.5,1933.4,1.04217936]
[1741977100463,5.63787,1933.5,1933.4,0.00775936]
[1741977105266,4.6035,1933.5,1933.4,1.04217936]
[1741977105472,5.63787,1933.5,1933.4,1.04217936]
[1741977105864,5.63787,1933.5,1933.4,0.00775936]
[1741977106370,1.03447,1933.3,1933.2,0.7232]
[1741977106574,4.24227,1933.3,1933.2,0.7232]
[1741977107076,5.66907,1933.3,1933.2,0.7232]
[1741977107373,5.66907,1933.3,1933.2,2.046]
[1741977109277,5.66907,1933.3,1933.1,0.00775936]
[1741977109278,1.03453,1933.2,1933.1,0.00775936]
[1741977109577,2.45333,1933.2,1933.1,0.00775936]
[1741977109972,2.45333,1933.2,1933.1,3.11583936]
[1741977110578,2.45333,1933.2,1933.1,2.08125936]
[1741977110774,2.45333,1933.2,1933.1,3.11583936]
[1741977110974,2.45333,1933.2,1933.1,2.08125936]
[1741977111170,2.45333,1933.2,1933.1,3.11583936]
[1741977111370,2.45333,1933.2,1933.1,2.08125936]
[1741977111576,2.45333,1933.2,1933.1,3.11583936]
[1741977112380,2.45333,1933.2,1933.1,2.08125936]
[1741977112581,2.45333,1933.2,1933.1,3.11583936]
[1741977113080,2.45333,1933.2,1933.1,2.08125936]
[1741977113475,2.45333,1933.2,1933.1,0.00775936]
[1741977114490,1.03474,1932.8,1932.7,1.76048]
[1741977114691,4.24254,1932.8,1932.7,1.76048]
[1741977115388,3.2078,1932.8,1932.3,9.513]